Cogmind - Beta 10.1 @@@ ROGUE MODE // 2020.09.30 @ 05:13:33 // Winter2019/RPGLIKE Player: Calanor Result: Destroyed by as-91715 with Assembled Heavy Rifle Performance ------------- Evolutions (0) 0 Regions Visited (2) 400 Robots Destroyed (41) 205 Value Destroyed (573) 573 Prototype IDs (0) 0 Alien Tech Used (0) 0 Bonus (60) 60 TOTAL SCORE: 1238 Bonus ------- Follower Combat Kills 60 Cogmind --------- Core Integrity 0/800 Matter 132/300 Energy 250/250 System Corruption 0% Temperature Cool (10) Movement Rolling (80) Location -10/Mines Parts ------- > --- POWER (2) -------- Ion Engine > --- PROPULSION (2) --- Wheel > --- UTILITY (2) ------ Visual Processing Unit > --- WEAPON (2) ------- Assault Rifle Mini Grenade Launcher > --- INVENTORY (4) ---- Ion Engine Improved Heat Sink Particle Gun Light Assault Rifle Peak State ------------ > --- POWER ------------ Light Ion Engine Light Ion Engine > --- PROPULSION ------- Wheel Wheel > --- UTILITY ---------- Visual Processing Unit Trap Extractor > --- WEAPON ----------- Assault Rifle Light Assault Rifle > --- INVENTORY -------- Light Armor Plating Particle Gun Mini Grenade Launcher [Rating: 10] Favorites ----------- Power Light Ion Engine Engine Light Ion Engine Propulsion Wheel Wheel Wheel Utility Visual Processing Unit Device Tractor Beam Processor Visual Processing Unit Protection Light Armor Plating Weapon Light Assault Rifle Energy Gun EM Pulse Gun Ballistic Gun Light Assault Rifle Launcher Mini Grenade Launcher Special Weapon Mining Laser Build | -11 -10 -10 ------- Run | Scr Mat Min Slots Evolved 4 | 3 1 . Power 1 | . 1 . Propulsion 1 | 1 . . Utility 1 | 1 . . Weapon 1 | 1 . . Parts Attached 33 | 5 24 4 Power 5 | 1 3 1 Engine 5 | 1 3 1 Core . | . . . Reactor . | . . . Propulsion 9 | 2 7 . Treads . | . . . Leg . | . . . Wheel 9 | 2 7 . Hover . | . . . Flight . | . . . Utility 7 | . 7 . Device 2 | . 2 . Storage . | . . . Processor 1 | . 1 . Hackware . | . . . Protection 4 | . 4 . Artifact . | . . . Weapon 12 | 2 7 3 Energy Gun 4 | 2 2 . Energy Cannon . | . . . Ballistic Gun 4 | . 3 1 Ballistic Cannon . | . . . Launcher 2 | . . 2 Special Weapon 2 | . 2 . Impact Weapon . | . . . Slashing Weapon . | . . . Piercing Weapon . | . . . Special Melee Weapon . | . . . Unidentified Prototypes . | . . . Parts Lost 4 | . 1 3 Power 1 | . . 1 Propulsion 1 | . . 1 Utility 1 | . . 1 Weapon 1 | . 1 . Highest Loss Streak 2 | . 1 2 Average Slot Usage (%) 95 | . 94 96 Engine 22 | . 21 23 Wheel 25 | . 25 25 Device 2 | . 3 . Processor 10 | . 10 12 Protection 7 | . 6 10 Energy Gun 9 | . 12 . Ballistic Gun 14 | . 12 23 Naked Turns . | . . . Heaviest Build 14 | 9 14 14 Greatest Support 26 | 26 26 20 Greatest Overweight (x) . | . . . Average Overweight (x) . | . . . Largest Inventory Capacity 4 | 3 3 4 Average Capacity 3 | 3 3 3 Most Carried 4 | 3 3 4 Average Carried 3 | 2 2 3 Final Capacity 4 | 3 3 4 Final Carried 4 | 3 3 4 Class Distribution -------------------- 100% | Mutant Dominant Class ---------------- Mutant | -10/Materials Mutant | -10/Mines Resources | -11 -10 -10 ----------- Run | Scr Mat Min Matter Collected 627 | 250 318 59 Remotely 93 | . 93 . Salvage Created 844 | . 838 6 Parts 64 | . 60 4 Haulers Intercepted 2 | . 2 . Recyclers Shooed . | . . . Parts Field Recycled . | . . . Retrieved Matter . | . . . Parts Self-Destructed . | . . . Prevented . | . . . Kills | -11 -10 -10 ------- Run | Scr Mat Min Combat Hostiles Destroyed 27 | . 18 9 Guns 17 | . 15 2 AOE 10 | . 3 7 Classes Destroyed 8 | . 7 1 Worker 4 | . 4 . Tunneler 1 | . 1 . Hauler 2 | . 2 . Recycler 4 | . 4 . Watcher 3 | . 3 . Swarmer 9 | . 9 . Grunt 10 | . 9 1 Assembled 8 | . . 8 Best Kill Streak 8 | . 7 8 Combat Bots Only 8 | . 3 8 Max Kills in Single Turn 3 | . 2 3 Gunslinging . | . . . Exploded 3 | . 2 3 Melee . | . . . Uniques/NPCs Destroyed . | . . . Combat | -11 -10 -10 -------- Run | Scr Mat Min Damage Taken 2554 | . 1163 1391 Core 1986 | . 911 1075 Absorbed by Shields . | . . . Redirected to Core 1465 | . 649 816 Core Remaining (%) 100 | 100 . . Volleys Fired 138 | . 97 41 Largest 2 | . 2 2 Hottest 100 | . 100 50 Shots Fired 260 | . 185 75 Gun 251 | . 181 70 Cannon . | . . . Launcher 5 | . . 5 Special 4 | . 4 . Kinetic 130 | . 60 70 Thermal 42 | . 42 . Explosive 5 | . . 5 Electromagnetic 83 | . 83 . Robot Hit Streak 14 | . 13 14 Robot Miss Streak 7 | . 7 3 Penetration Max . | . . . Secondary Targets 9 | . 8 1 Max Gunslinging Chain 1 | . 1 1 Shots Hit Robots 148 | . 104 44 Core Hits 71 | . 48 23 Critical Hits . | . . . Critical Kills . | . . . Critical Parts Destroyed . | . . . Melee Attacks . | . . . Impact . | . . . Slashing . | . . . Piercing . | . . . Sneak Attacks . | . . . Combat Hostiles . | . . . Follow-up Attacks . | . . . Damage Inflicted 2327 | . 1334 993 Guns 1568 | . 1166 402 Cannons . | . . . Explosions 759 | . 168 591 Melee . | . . . Ramming . | . . . Kinetic 668 | . 266 402 Thermal 378 | . 378 . Explosive 591 | . . 591 Electromagnetic 690 | . 690 . Impact . | . . . Slashing . | . . . Piercing . | . . . Highest Corruption . | . . . Average Corruption . | . . . Corruption Purged . | . . . Overload Shots . | . . . Overflow Damage 11 | . . 11 Projectiles . | . . . Explosions 11 | . . 11 Melee . | . . . Knockbacks . | . . . Impact . | . . . Kinetic . | . . . Secondary . | . . . Self-Inflicted Damage 84 | . 10 74 Shots 4 | . 1 3 Rammed . | . . . Targets Rammed . | . . . Kicked . | . . . Crushed . | . . . Highest Temperature 330 | . 330 49 Average Temperature 75 | . 87 10 Received Heat Transfer 610 | . 315 295 Siege Activations . | . . . Robots Corrupted . | . . . Combat Hostiles . | . . . Parts Fried 5 | . 5 . Impact Corruptions . | . . . Robots Melted . | . . . Combat Hostiles . | . . . Parts Melted 2 | . 2 . Heat Transferred 829 | . 829 . Parts Sabotaged . | . . . Parts Stolen . | . . . Parts Stripped . | . . . Power Chain Reactions 4 | . 4 . Missiles Intercepted . | . . . Alert | -11 -10 -10 ------- Run | Scr Mat Min Peak Influence 364 | . 364 95 Initial 7 | . . 7 Average 112 | . 138 36 Maximum Alert Level 1 | . 1 . Low Security (%) 86 | 100 82 100 Level 1 13 | . 17 . Level 2 . | . . . Level 3 . | . . . Level 4 . | . . . Level 5 . | . . . High Security . | . . . Max Security . | . . . Squads Dispatched 2 | . 2 . Investigation 1 | . 1 . Extermination . | . . . Reinforcement 1 | . 1 . Assault . | . . . Garrison . | . . . Intercept . | . . . Construction Impeded . | . . . Haulers Reinforced . | . . . Stealth | -11 -10 -10 --------- Run | Scr Mat Min Distress Signals 1 | . 1 . Communications Jammed . | . . . Distress Signals . | . . . Times Spotted 53 | . 32 21 Peak Tracking Total 7 | . 6 7 Tactical Retreats 5 | . 4 1 Traps | -11 -10 -10 ------- Run | Scr Mat Min Traps Triggered 2 | . 2 . Indirectly . | . . . Trap Hack Attempts . | . . . Triggered . | . . . Disarmed . | . . . Reprogrammed . | . . . Reused . | . . . Traps Extracted . | . . . Installed . | . . . Triggered . | . . . Machines | -11 -10 -10 ---------- Run | Scr Mat Min Machines Disabled 4 | . 4 . Max in Single Turn 1 | . 1 . Machines Sabotaged . | . . . Garrisons Compromised . | . . . Overloaded Fab Kills . | . . . Fab Network Shutdowns . | . . . Hacking | -11 -10 -10 --------- Run | Scr Mat Min Machines Accessed 8 | . 8 . Terminals 6 | . 6 . Fabricators . | . . . Repair Stations 1 | . 1 . Recycling Units 1 | . 1 . Scanalyzers . | . . . Garrison Access . | . . . Total Hacks 29 | . 29 . Successful 18 | . 18 . Failed 11 | . 11 . Catastrophic 1 | . 1 . Database Lockouts . | . . . Manual . | . . . Terminals 25 | . 25 . Fabricators . | . . . Repair Stations 3 | . 3 . Recycling Units 1 | . 1 . Scanalyzers . | . . . Garrison Access . | . . . Terminal Hacks 15 | . 15 . Robot Analysis 1 | . 1 . Branch Access Points 1 | . 1 . Emergency Access Points 1 | . 1 . Alert Level 3 | . 3 . Unreport Threat 2 | . 2 . Locate Traps 2 | . 2 . Dispatch Records 1 | . 1 . Investigation Status 1 | . 1 . Recall Investigation 1 | . 1 . Registered Components 1 | . 1 . Zone Layout 1 | . 1 . Fabricator Hacks . | . . . Repair Station Hacks 2 | . 2 . Scan Component 1 | . 1 . Repair 1 | . 1 . Recycling Unit Hacks 1 | . 1 . Report Inventory 1 | . 1 . Scanalyzer . | . . . Garrison Access Hacks . | . . . Unauthorized Hacks . | . . . Terminals . | . . . Fabricators . | . . . Repair Stations . | . . . Recycling Units . | . . . Scanalyzers . | . . . Garrison Access . | . . . Data Cores Recovered . | . . . Used . | . . . Hacking Detections 6 | . 6 . Full Trace Events . | . . . Feedback Events . | . . . Feedback Blocked . | . . . Robot Schematics Acquired . | . . . Robots Built . | . . . Matter . | . . . Time . | . . . Total Robot Build Rating . | . . . Part Schematics Acquired . | . . . Parts Built . | . . . Matter . | . . . Time . | . . . Total Part Build Rating . | . . . Parts Repaired 1 | . 1 . Time 13 | . 13 . Parts Recycled . | . . . Recycled Matter . | . . . Retrieved Matter . | . . . Retrieved Components . | . . . Parts Scanalyzed . | . . . Part Schematics Acquired . | . . . Parts Damaged . | . . . Bothacking | -11 -10 -10 ------------ Run | Scr Mat Min Used RIF Installer . | . . . Robots Hacked . | . . . Non-combat . | . . . Combat . | . . . Robot Hacks Applied . | . . . Relay Couplers Released . | . . . Robots Rewired . | . . . Allies Hacked . | . . . Hacks Repelled . | . . . Allies | -11 -10 -10 -------- Run | Scr Mat Min Total Allies 3 | . . 3 Largest Group 3 | . . 3 Highest-Rated Group 40 | . . 40 Highest-Rated Ally 16 | . . 16 Total Orders . | . . . Ally Attacks 38 | . . 38 Total Damage 446 | . . 446 Kills 8 | . . 8 Allies Corrupted . | . . . Allies Melted . | . . . Intel | -11 -10 -10 ------- Run | Scr Mat Min Robot Analysis Total 1 | . 1 . Derelict Logs Recovered 1 | . . 1 Drone Launches . | . . . Drone Recoveries . | . . . Exploration | -11 -10 -10 ------------- Run | Scr Mat Min Turns Passed 1715 | 40 1298 377 Spaces Moved 1304 | 34 1000 270 Core 1 | 1 . . Treads . | . . . Legs . | . . . Wheels 1303 | 33 1000 270 Hover . | . . . Flight . | . . . Fastest Speed 50 | 50 80 80 Average Speed 81 | 85 81 80 Slowest Speed 90 | 90 90 80 Overloaded Moves . | . . . Propulsion Burnouts . | . . . Robots Hopped . | . . . Cave-ins Triggered . | . . . Exploration Rate (%) 49 | 4 98 47 Regions Visited 2 Branch Regions 1 Pre-discovered Areas . | . . . Known Exits Taken 1 | . 1 . Unknown Exits Taken 1 | 1 . . Scrap Searched . | . . . Spaces Dug 11 | . 4 7 Terrain Destroyed 59 | . 21 38 Melee . | . . . Projectile 4 | . 4 . AOE 55 | . 17 38 Terrain Rammed . | . . . Walls Destroyed . | . . . Machines Disabled . | . . . Actions | -11 -10 -10 --------- Run | Scr Mat Min Total 1704 | 43 1299 362 Wait 143 | . 120 23 Move 1302 | 33 999 270 Hop . | . . . Pick Up 16 | 5 10 1 Fast Attach 9 | 3 6 . Attach 4 | 2 2 . Detach . | . . . Swap 20 | . 16 4 Drop 17 | . 16 1 Fire 138 | . 97 41 Melee . | . . . Ram . | . . . Kick . | . . . Crush . | . . . Escape Stasis . | . . . Rewire . | . . . Trap . | . . . Miscellaneous 55 | . 33 22 Route ------- -11/Scrapyard -10/Materials (discovered 5 exits: [*Mat x3] / *Min x2) -10/Mines History --------- Turn | Location | Event 1 | -11/Scrapyard | Upgraded with Propulsion slot (x1) 1 | -11/Scrapyard | Upgraded with Utility slot (x1) 1 | -11/Scrapyard | Upgraded with Weapon slot (x1) 15 | -11/Scrapyard | Discovered new exit (range 16) 41 | -11/Scrapyard | Entered Materials 118 | -10/Materials | Discovered new exit (range 7) 212 | -10/Materials | Core integrity fell below 50% 317 | -10/Materials | Build established: Mutant 326 | -10/Materials | Core integrity fell below 20% 406 | -10/Materials | Reached level 2 409 | -10/Materials | Upgraded with Power slot (x1) 621 | -10/Materials | Discovered new exit (range 17) 798 | -10/Materials | Discovered new exit (range 17) 911 | -10/Materials | Discovered new exit (range 4) 1048 | -10/Materials | Discovered new exit (range 17) 1113 | -10/Materials | Identified exit to Mines 1307 | -10/Materials | Repaired Lgt. Armor Plating 1339 | -10/Materials | Entered Mines 1341 | -10/Mines | Reached level 3 1386 | -10/Mines | Met a Derelict bent on vengeance 1531 | -10/Mines | Assisted by bots powering up and referring to "LRC-V3" 1575 | -10/Mines | Assembled infested the area 1699 | -10/Mines | Destroyed 8 combat bots 1716 | -10/Mines | Destroyed by as-91715 with Assembled Heavy Rifle Last Messages --------------- 01660_ as-13603 destroyed. 01660_ as-49956 destroyed. 01660_ Destroyed Asb. Hover Unit. 01660_ as-10834 destroyed. 01662_ Knocked back. 01663_ The unstable cave ceiling collapses. 01663_ as-12446 destroyed. 01663_ as-92402 destroyed. 01663_ as-37046 destroyed. 01668_ The unstable cave ceiling collapses. 01671_ Lgt. Ion Engine destroyed. 01678_ as-29502 destroyed. 01684_ K-01 Serf collects debris. 01685_ Used Protomatter to restore core integrity (+9, depleted) 01689_ Acquired 2 matter. 01689_ K-01 Serf collects debris. 01693_ Used Protomatter to restore core integrity (+24, depleted) 01695_ The unstable cave ceiling collapses. 01715_ Destroyed Asb. Hover Unit. 01715_ Wheel destroyed. Map ----- +----------------------------------------------------+ | | | | | | | | | | | | | | | | | | | | | | | ?????????????????????????????????????????????????? | | ?????????????????????????????????????????????????? | | ?????????????????????????????????????????????????? | | ?????????????????????????????????????????????????? | | ?????????????????????????????????????????????????? | | ?????????????????????????????????????????????????? | | ??????????????????????##?###?????????????????????? | | ?????????????????????? # #??????????? ????????? | | ?????????????????????## #??????????? ????????? | | ?????????????????????# #??????????? ????????? | | ???????????????????### #??????????? #???????? | | ??????????########## a ##?????????? ???????? | | ??????? " aa ##?????????? ???????? | | ??????? %! a ##????????? ???????? | | ???????????????## ##@ ##???????? #??????? | | ????????????????##% ???## #???????? #??????? | | ?????????????????##??????## ##??????? ##?????? | | ??????????????????????????## ###????? ##????? | | ??????????????????????????## ##???? ##???? | | ??????????????????????????# #???? ##??? | | ?????????????## ?????????## #????# #??? | | ?????????????# ????##### % ##????# #??? | | ?????????????# ??# ##??#### #??? | | ?????????????# ## #??## #??? | | ??????????????# ##?# #???? | | ??????????????# ## ###???? | | ?????????????# = =%* ##?????? | | ????????????# ! ] ## # # [ ##?????? | | ???????????# # ?## #= = #?????? | | ???????????# #?#%???# #####! #?????? | | ???????????## ???#????# % ##?????? | | ????????????#??????????# #####= ## #??????? | | ???????????????????????# #???## #### ##??????? | | ???????????????????????# #????## ##??####???????? | | ???????????????????????# #?????# #??????????????? | | ??????????????????????## #?????# ######?????????? | | ??????????????????##### #?????# #?????????? | | ??????????????????? #?????###### #?????????? | | ?????????????????????# #?####?????# #?????????? | +----------------------------------------------------+ Best States ------------- Heat Dissipation 31 Energy Generation 20 Energy Capacity 275 Matter Stores 300 Matter Capacity 300 Sight Range 18 Robot Scan Range 2 Terrain Scan Density 10 Armor Coverage 150 Evasion (%) 44 Item Schematics ----------------- None Robot Schematics ------------------ None Fabricated ------------ Nothing Alien Tech Used ----------------- None Achievements -------------- None Challenges ------------ None RPGLIKE | -11 -10 -10 --------- Run | Scr Mat Min Levels Raised 2 | . 1 1 XP Earned 6629 | 3000 2660 969 XP Spent 5960 | 3000 1500 1460 Upgrades 17 | 6 5 6 Power Slot 1 | . 1 . Propulsion Slot 1 | 1 . . Utility Slot 1 | 1 . . Weapon Slot 1 | 1 . . Core Integrity 4 | . . 4 Heat Dissipation 1 | . 1 . Energy Generation 1 | . . 1 Inventory Capacity 4 | 3 . 1 Sensor Range 1 | . 1 . Ranged Accuracy 2 | . 2 . Protomatter Created 317 | . 270 47 Integrity Restored 1182 | . 690 492 Core 1182 | . 690 492 Protomatter Decayed 81 | . 40 41 Game ------ Seed RelayTargetingRigger Manual? 0 Play Time 00:28:33 Cumulative 38.8 hours Start 2020.09.30 @ 04:42:53 End 2020.09.30 @ 05:13:33 Sessions 1 Manual Loads 0 Difficulty Rogue Special Mode Winter2019/RPGLIKE Game No. 37 Rogue 37 Adventurer 0 Explorer 0 Win Type - Total 0 Types 0/0/0/0/0/0/0/0/0 Lore% 21 Gallery% 20 Achievement% 18 Wizard Run 0 Options --------- ASCII 0 Keyboard 0 Movement Numpad Keybinds 0 Fullscreen 1 Font 24/Terminus Map View 76x50 Tactical HUD 1 Map Filters NONE Filters NONE Steam 1 RUN: 7f6423dc-a666-445c-a2c9-c7f8aac867d9